bitfinex/quotes_ETHUSD_20220120
["timestamp","ask_amount","ask_price","bid_price","bid_amount"]
[1642715358789,0.80527,3106.1,3105.1,0.10443931]
[1642715358994,0.80527,3106.1,3105.1,0.01648428]
[1642715358995,1.15892354,3106.1,3105.1,0.01648428]
[1642715359194,0.19826424,3106.0,3105.1,0.01648428]
[1642715359390,0.30509527,3106.0,3105.1,0.00341054]
[1642715359590,0.84055052,3105.9,3105.8,1.46346699]
[1642715359790,0.8470086,3105.9,3105.0,143.34106299]
[1642715359994,0.00454739,3105.9,3105.0,143.34106299]
[1642715360193,0.00397897,3105.8,3105.1,0.01214261]
[1642715360393,0.3228,3106.1,3105.8,0.01269391]
[1642715360394,7.897e-05,3106.1,3105.8,0.01269391]
[1642715360596,0.3218,3107.0,3106.0,0.0129809]
[1642715360795,0.3218,3107.0,3106.1,2.42385213]
[1642715360999,1.15622371,3108.2,3106.7,0.01239791]
[1642715361000,1.05665108,3108.2,3106.7,0.01239791]
[1642715361262,0.01291409,3108.7,3107.6,0.11692791]
[1642715361263,0.03415057,3108.7,3107.6,0.11692791]
[1642715361450,2.183303,3109.4,3107.6,1.03822791]
[1642715361650,0.01364216,3108.2,3107.6,1.03822791]
[1642715361847,0.01364216,3108.2,3107.6,0.9337886]
[1642715362045,2.18111715,3109.4,3107.6,0.9213]
[1642715362046,0.01307374,3108.1,3107.6,0.9213]
[1642715362244,0.04001258,3108.0,3106.8,0.03674207]
[1642715362445,0.05251789,3108.0,3106.8,0.03674207]
[1642715362644,0.01193689,3107.9,3106.8,0.03674207]
[1642715363045,0.01136846,3107.8,3106.8,0.03674207]
[1642715363444,0.01080004,3107.7,3106.8,3.91524207]
[1642715363850,0.01023162,3107.6,3106.8,3.91524207]
[1642715364051,0.01102727,3107.5,3106.8,3.91524207]
[1642715364253,0.02069046,3107.5,3106.8,3.91524207]
[1642715364450,0.00909477,3107.4,3107.3,3.84096769]
[1642715364848,0.01534743,3107.4,3107.3,3.84096769]
[1642715365472,0.01534743,3107.4,3107.3,6.94096769]
[1642715366279,4.743e-05,3107.4,3107.3,5.78364836]
[1642715366479,0.13819997,3109.0,3107.4,6.1008]
[1642715366681,0.97246644,3109.6,3107.5,0.07482895]
[1642715366882,0.97246644,3109.6,3107.8,0.01252787]
[1642715366883,0.00170527,3108.8,3107.8,0.01252787]
[1642715367078,0.00170527,3108.8,3107.9,0.0502402]
[1642715367280,0.00113685,3108.7,3108.0,1.32214432]
[1642715367480,0.00113685,3108.7,3108.1,1.27591339]
[1642715367683,0.9602,3109.6,3109.2,2.81288596]
[1642715367684,0.00568423,3109.5,3109.2,2.81288596]
[1642715367880,0.00568423,3109.5,3108.2,0.00170527]
[1642715368079,0.9602,3109.6,3108.2,0.00170527]
[1642715368080,0.00511581,3109.4,3108.2,0.00170527]
[1642715368380,0.00454739,3109.3,3107.9,0.00341054]
[1642715368743,0.9602,3109.6,3107.9,0.00341054]
[1642715368744,0.00397896,3109.2,3107.9,0.00341054]
[1642715368941,0.00745379,3109.1,3107.9,0.00341054]
[1642715369141,0.01262751,3108.7,3107.7,1.37640636]
[1642715369340,0.01262751,3108.7,3107.8,0.00397897]
[1642715370140,1.4479742,3108.7,3107.8,0.00397897]
[1642715370343,3.86435667,3108.6,3107.8,0.00397897]
[1642715370563,18.60019,3108.5,3107.8,0.00397897]
[1642715370743,22.31729343,3108.4,3107.8,0.00397897]
[1642715370942,1.60942,3108.4,3107.8,0.00397897]
[1642715371144,0.03872283,3108.6,3107.8,0.00397897]
[1642715371341,0.1014579,3108.9,3107.8,0.00397897]
[1642715371541,0.1140405,3108.9,3107.8,0.00397897]
[1642715371942,0.80455,3108.8,3108.3,1.21337698]
[1642715372147,0.84030993,3108.8,3108.3,1.21337698]
[1642715372343,0.00113685,3108.7,3107.8,0.00397897]
[1642715372802,0.01490985,3108.6,3107.8,0.00397897]
[1642715372999,0.00113685,3108.7,3107.8,0.00397897]
[1642715373398,0.00113685,3108.7,3107.9,2.98922241]
[1642715373602,0.83821614,3108.6,3107.8,0.00397897]
[1642715373800,3.55904897,3108.5,3108.0,0.00284212]
[1642715374003,3.55904897,3108.5,3107.7,0.03]
[1642715374004,2.44618167,3108.5,3107.8,0.00397897]
[1642715374600,1.52645204,3107.9,3107.8,0.00397897]
[1642715374811,1.52645204,3107.9,3106.8,0.1]
[1642715374812,0.8048746,3107.6,3106.8,0.1]
[1642715375007,0.80491,3107.5,3106.8,0.1]
[1642715375202,0.83503121,3107.5,3107.1,0.00397896]
[1642715375603,0.84067601,3107.6,3107.1,0.00397896]
[1642715375803,0.80489,3107.5,3107.1,0.00397896]
[1642715376005,0.84067601,3107.6,3107.1,0.00397896]
[1642715377030,0.03438899,3107.7,3107.0,0.00454738]
[1642715377229,0.2231,3107.8,3107.0,0.00454738]
[1642715377627,0.2231,3107.8,3107.6,1.44304464]
[1642715378832,0.2231,3107.8,3107.6,1.10231699]
[1642715378833,0.1731,3107.8,3107.6,1.10231699]
[1642715380579,1.055e-05,3108.4,3107.7,0.05859904]
[1642715380786,0.16019,3109.6,3107.7,0.05859904]
[1642715380787,0.80426,3109.8,3108.3,0.01264145]
[1642715380985,0.1232,3110.5,3108.3,0.01264145]
[1642715380986,2.99010794,3110.5,3108.3,0.01264145]
[1642715381184,0.00227369,3108.8,3108.3,0.01264145]
[1642715381586,0.00170527,3108.7,3108.2,1.35090692]
[1642715381783,0.00170527,3108.7,3107.8,0.00341055]
[1642715381986,0.00113684,3108.6,3107.8,0.00341055]
[1642715382183,0.00113684,3108.6,3107.7,0.00397897]
[1642715382983,0.00113684,3108.6,3107.8,0.08548892]
[1642715383185,0.00113684,3108.6,3107.7,0.00397897]
[1642715383385,0.00113684,3108.6,3107.6,1.05417]
[1642715383386,0.00113684,3108.6,3108.0,1.38664788]
[1642715383583,0.00113684,3108.6,3108.1,3.6024]
[1642715383845,0.00113684,3108.6,3108.1,3.60410527]
[1642715384044,0.00113684,3108.6,3108.2,0.00113685]
[1642715385155,3.684e-05,3108.6,3108.2,0.00113685]
[1642715385350,3.684e-05,3108.6,3108.3,0.80409]
[1642715385545,3.684e-05,3108.6,3108.4,0.02168436]
[1642715385744,3.684e-05,3108.6,3108.4,0.0011]
[1642715386246,3.684e-05,3108.6,3108.2,0.00223685]
[1642715387476,3.684e-05,3108.6,3108.4,1.11231294]
[1642715387477,0.00337714,3108.6,3108.4,1.11231294]
[1642715388480,0.00337714,3108.6,3108.4,2.27422927]
[1642715389990,0.00162735,3108.6,3108.4,2.27422927]
[1642715390193,0.00162735,3108.6,3108.4,1.16191633]
[1642715390586,0.00162735,3108.6,3108.2,0.00223685]
[1642715390587,0.01374267,3108.6,3108.2,0.00223685]
[1642715390983,0.01374267,3108.6,3107.8,0.00451055]
[1642715391230,3.2186394,3108.5,3107.8,0.00451055]
[1642715391432,0.01901047,3108.4,3107.8,0.00451055]
[1642715391635,3.2186394,3108.5,3107.8,0.00451055]
[1642715391636,0.80457,3108.3,3107.8,0.00451055]
[1642715391836,1.62293267,3108.6,3107.9,0.04804574]
[1642715391837,0.00162735,3108.6,3107.9,0.04804574]
[1642715392031,0.00162735,3108.6,3107.8,0.00451055]
[1642715392231,0.00162735,3108.6,3108.0,0.0033737]
[1642715392435,3.684e-05,3108.6,3107.8,0.00451055]
[1642715393635,3.684e-05,3108.6,3108.3,1.24189852]
[1642715393838,3.684e-05,3108.6,3107.8,0.00451055]
[1642715394039,3.684e-05,3108.6,3108.4,0.0011]
[1642715394239,3.684e-05,3108.6,3107.8,0.00451055]
[1642715394843,0.02028434,3108.5,3107.8,0.00451055]
[1642715395128,1.60911684,3108.6,3107.8,0.00451055]
[1642715396117,0.00879375,3108.4,3107.8,0.00451055]
[1642715396318,0.00879375,3108.4,3108.1,0.05531664]
[1642715396319,7.67e-05,3108.4,3108.1,0.05531664]
[1642715396520,3.21833684,3108.6,3108.1,0.05531664]
[1642715396521,3.684e-05,3108.6,3108.1,0.05531664]
[1642715396722,3.684e-05,3108.6,3108.2,0.00223685]
[1642715397120,3.684e-05,3108.6,3108.1,0.00280527]
[1642715397524,0.80450684,3108.6,3108.1,0.00280527]
[1642715397928,0.01244051,3108.5,3108.1,0.00280527]
[1642715398829,0.80467,3108.3,3108.1,0.00280527]
[1642715399931,0.80467,3108.3,3108.1,0.04682485]
[1642715400131,0.80467,3108.3,3108.1,0.00280527]
[1642715400330,0.80467,3108.3,3108.2,0.00223685]
[1642715400536,0.80467,3108.3,3108.1,0.00280527]
[1642715400938,0.80467,3108.3,3107.0,0.03]
[1642715400939,5.8,3108.1,3107.0,0.03]
[1642715401141,1.6096249,3108.0,3107.0,0.03]
[1642715401342,1.6096249,3108.0,3106.8,0.1]
[1642715401343,6.0,3107.4,3106.8,0.1]
[1642715401537,0.16019,3107.4,3106.8,0.1]
[1642715401843,6.90499,3107.2,3106.0,0.6]
[1642715402036,18.44,3107.3,3106.0,0.6]
[1642715402037,18.60019,3107.1,3106.0,0.6]
[1642715402235,18.60019,3107.1,3106.1,0.00454738]
[1642715402236,18.60132685,3107.1,3106.1,0.00454738]
[1642715402487,2.1681478,3106.9,3106.1,0.00454738]
[1642715402685,1.6103823,3106.9,3106.1,0.00454738]
[1642715402886,0.80517,3106.8,3106.1,0.00454738]
[1642715403287,0.80519,3106.9,3106.1,0.00454738]
[1642715403685,0.80519,3106.9,3106.8,1.47835419]
[1642715403886,0.80519,3106.9,3106.1,0.00454738]
[1642715404286,0.80493,3106.8,3106.1,0.00454738]
[1642715404693,2.4150385,3106.6,3106.1,0.00454738]
[1642715404889,2.41422011,3106.6,3106.1,0.00454738]
[1642715405088,2.41422011,3106.6,3106.2,1.27646175]
[1642715405489,4.82935701,3106.6,3106.3,0.00341054]
[1642715406238,0.80496,3106.5,3106.3,0.00341054]
[1642715407831,0.80483,3106.9,3106.4,0.04210969]
[1642715408028,0.80483,3107.1,3106.3,0.00341054]
[1642715408231,0.80596685,3107.1,3106.5,0.00227369]
[1642715408435,0.80596685,3107.1,3106.6,0.02852415]
[1642715408436,0.00113685,3107.1,3106.6,0.02852415]
[1642715408632,0.00113685,3107.1,3106.7,2.80748065]
[1642715408837,0.00113685,3107.1,3106.8,0.05167622]
[1642715409037,0.00113685,3107.1,3106.7,0.00113684]
[1642715409236,1.5,3107.7,3106.7,0.00113684]
[1642715409237,0.1609,3107.4,3106.7,0.00113684]
[1642715409434,0.1609,3107.4,3106.1,0.00568423]
[1642715409637,0.80494,3107.1,3106.1,0.00568423]
[1642715409836,0.80507,3106.9,3106.1,0.00568423]
[1642715410086,0.80507,3106.9,3106.1,1.34847582]
[1642715410485,0.80507,3106.9,3106.2,0.00511581]
[1642715410687,0.80506,3106.7,3106.2,0.00511581]
[1642715410891,0.80499,3106.6,3106.2,0.00511581]
[1642715411888,0.80477,3106.9,3106.2,0.00511581]
[1642715412492,3.80650527,3107.4,3106.2,0.00511581]
[1642715412493,3.00170527,3107.4,3106.2,0.00511581]
[1642715412692,3.00170527,3107.4,3106.4,0.01229936]
[1642715412892,3.00170527,3107.4,3106.6,1.45571854]
[1642715413092,1.60901,3108.2,3107.3,0.01200128]
[1642715413495,0.00284212,3107.9,3107.3,0.01200128]
[1642715413931,22.52180381,3109.7,3107.6,2.51775941]
[1642715413932,2.40406427,3109.7,3107.6,2.51775941]
[1642715414134,0.80428,3109.4,3107.9,0.05514149]
[1642715414333,5.28e-06,3108.1,3108.0,0.03674207]
[1642715414534,2.40406427,3109.7,3108.0,0.19762207]
[1642715414535,0.00682636,3109.3,3108.0,0.19762207]
[1642715414735,0.0079632,3109.5,3108.0,0.19762207]
[1642715414934,5.793e-05,3109.2,3108.1,0.09337444]
[1642715415136,0.803985,3110.1,3108.0,0.19762207]
[1642715415137,0.80376,3110.9,3109.2,0.80377]
[1642715415333,2.18296427,3111.2,3108.7,0.81659892]
[1642715415334,3.5,3111.0,3109.1,0.16088]
[1642715415533,0.0022737,3109.6,3109.1,0.16088]
[1642715415733,0.0022737,3109.6,3109.2,1.43618365]
[1642715415934,2.18296427,3111.2,3109.3,0.2074547]
[1642715415935,0.00170527,3109.5,3109.3,0.2074547]
[1642715416138,0.00170527,3109.5,3109.3,1.76858]
[1642715416433,0.00113685,3109.4,3109.3,1.76858]
[1642715416636,0.01279645,3111.3,3109.4,6.1]
[1642715416837,3.5,3112.0,3110.8,1.51796567]
[1642715417036,3.5,3112.0,3110.3,0.16088]
[1642715417037,0.00795793,3110.8,3110.3,0.16088]
[1642715417237,0.00795793,3110.8,3110.3,1.76811]
[1642715417483,0.00738951,3110.7,3109.6,3.6236]
[1642715417681,0.00738951,3110.7,3110.0,1.36288054]
[1642715417880,0.01287973,3110.9,3110.1,1.17777824]
[1642715417881,0.00682108,3110.6,3110.1,1.17777824]
[1642715418280,0.2833,3112.4,3110.1,1.17777824]
[1642715418281,0.00625266,3110.5,3110.1,1.17777824]
[1642715418480,0.00625266,3110.5,3110.2,0.16088]
[1642715418685,0.00568424,3110.4,3110.2,0.16088]
[1642715419087,0.01217337,3111.7,3110.2,0.16088]
[1642715419088,0.00511581,3110.3,3110.2,0.16088]
[1642715419287,0.26965787,3112.5,3110.8,1.60699]
[1642715419686,0.26965787,3112.5,3110.9,4.28207478]
[1642715419687,0.00738951,3111.6,3110.9,4.28207478]
[1642715419885,0.00738951,3111.6,3111.0,2.09804614]
[1642715420092,0.03,3112.5,3111.5,0.0127048]
[1642715420288,0.03,3112.5,3111.6,0.21414762]
[1642715420489,0.03,3112.5,3111.6,1.82053762]
[1642715420490,0.00454738,3112.4,3111.6,1.82053762]
[1642715420687,0.00454738,3112.4,3111.1,1.7789795]
[1642715420688,0.00454738,3112.4,3111.1,0.00284212]
[1642715420891,0.01283991,3112.0,3111.1,0.00284212]
[1642715421092,0.01631876,3111.9,3111.1,0.00284212]
[1642715421349,0.1609,3111.8,3110.8,0.00454739]
[1642715421543,0.80386,3111.6,3110.8,0.00454739]
[1642715421747,2.95913752,3112.2,3109.7,0.01272165]
[1642715421748,0.27301,3111.5,3111.0,6.1]
[1642715421937,2.41133,3113.0,3111.0,6.1]
[1642715421938,0.03,3112.5,3111.3,0.01201807]
[1642715422136,0.03,3112.5,3112.4,1.41433058]
[1642715422335,2.69563457,3112.1,3111.4,0.00227369]
[1642715422536,3.49927107,3112.1,3111.4,0.00227369]
[1642715422732,3.49927107,3112.1,3111.4,1.32291084]
[1642715422934,2.69563457,3112.1,3111.4,1.32291084]
[1642715423131,2.69563457,3112.1,3111.5,0.00170527]
[1642715423338,2.69563457,3112.1,3111.7,1.51898738]
[1642715424038,0.03305318,3112.0,3111.5,0.00170527]
[1642715424236,2.69563457,3112.1,3111.5,0.00170527]
[1642715424438,2.69563457,3112.1,3110.7,0.00625265]
[1642715424841,0.80364,3111.8,3110.7,0.00625265]
[1642715425120,0.80383,3111.4,3110.7,0.00625265]
[1642715425310,0.80383,3111.4,3110.6,0.00682108]
[1642715425509,0.96473,3111.4,3110.8,0.00568423]
[1642715425710,0.96473,3111.4,3110.6,0.00682108]
[1642715425910,0.80386,3111.4,3111.0,1.22730273]
[1642715426112,0.80386,3111.4,3110.6,0.00682108]
[1642715426313,0.80386,3111.4,3111.1,0.00397896]
[1642715426515,0.80386,3111.4,3110.4,0.00795792]
[1642715426712,0.80386,3111.4,3110.9,1.4268374]
[1642715427111,0.80386,3111.4,3111.0,0.00454738]
[1642715427314,4.30311457,3112.1,3111.0,0.00454738]
[1642715427315,2.69563457,3112.1,3111.0,0.00454738]
[1642715428312,2.69563457,3112.1,3111.6,1.28329482]
[1642715428515,2.69563457,3112.1,3111.7,0.04826249]
[1642715428740,2.69563457,3112.1,3111.0,0.00454738]
[1642715428741,0.0167425,3111.9,3111.0,0.00454738]
[1642715428941,0.1609,3111.8,3111.0,0.00454738]
[1642715429147,0.1609,3111.8,3110.4,0.00795792]
[1642715429346,0.80389,3111.7,3110.4,0.00795792]
[1642715429547,0.80389,3111.7,3109.3,0.01256146]
[1642715429548,1.16649945,3110.1,3109.3,1.16693883]
[1642715429751,6.19022486,3111.3,3108.5,6.6]
[1642715429752,0.80421,3110.0,3108.6,0.01296026]
[1642715429945,0.80421,3110.0,3109.4,0.00568424]
[1642715430156,0.03556952,3109.8,3109.4,0.00568424]
[1642715430347,0.1609,3109.7,3109.4,0.00568424]
[1642715430545,0.01370897,3109.6,3108.6,0.01023163]
[1642715430743,1.60876,3109.4,3108.3,0.0119369]
[1642715430945,0.80438,3109.4,3109.1,1.36340641]
[1642715431343,0.1609,3110.1,3109.2,0.00682109]
[1642715431344,1.60828,3110.0,3109.2,0.00682109]
[1642715431749,0.81617339,3110.7,3109.2,0.00682109]
[1642715431750,0.1609,3110.6,3109.2,0.00682109]
[1642715431944,0.96493,3110.8,3109.8,1.50323351]
[1642715432146,0.00113684,3110.6,3110.1,1.31814027]
[1642715432482,0.80403,3110.8,3110.1,1.31814027]
[1642715432483,1.60809,3110.5,3110.2,0.00113685]
[1642715432886,0.00170527,3110.7,3110.2,0.00113685]
[1642715432887,0.80399,3110.6,3110.2,0.00113685]
[1642715433286,0.80512684,3110.6,3109.2,0.00682109]
[1642715433487,0.80512684,3110.6,3109.4,1.1394545]
[1642715433488,1.21176043,3110.5,3109.4,1.1394545]
[1642715433887,0.80401,3110.3,3109.5,0.00511582]
[1642715434090,0.01497734,3110.2,3109.5,0.00511582]
[1642715434291,1.60858,3110.2,3109.5,0.00511582]
[1642715434487,1.60858,3110.2,3108.3,0.0119369]
[1642715434488,0.01221851,3110.0,3108.3,0.0119369]
[1642715434687,0.1609,3109.9,3108.3,0.0119369]
[1642715434888,0.1609,3109.9,3108.3,1.46918871]
[1642715434889,1.29987611,3109.4,3108.3,1.46918871]
[1642715435087,1.60854,3109.7,3108.8,1.4072823]
[1642715435290,1.60854,3109.7,3108.4,0.01136847]
[1642715435291,0.80429,3109.1,3108.4,0.01136847]
[1642715435486,0.80429,3109.1,3108.9,0.00852636]
[1642715435487,0.01300922,3109.0,3108.9,0.00852636]
[1642715435688,0.80429,3109.1,3108.3,0.0119369]
[1642715436090,2.5739,3109.9,3108.3,0.0119369]
[1642715436091,0.1609,3109.9,3108.3,0.0119369]
[1642715436361,0.80413,3109.9,3108.9,1.44334299]
[1642715436545,0.00113684,3110.6,3108.9,1.44334299]
[1642715436546,0.00113684,3110.6,3109.0,0.01464776]
[1642715436745,0.00113684,3110.6,3109.0,0.00795793]
[1642715436953,0.00113684,3110.6,3109.5,1.32427209]
[1642715437151,0.00113684,3110.6,3109.0,0.00795793]
[1642715437152,0.01231842,3110.3,3109.0,0.00795793]
[1642715437353,0.01231842,3110.3,3108.1,3.6433]
[1642715437354,0.80432,3109.8,3108.1,3.6433]
[1642715437553,0.02018479,3109.6,3108.5,0.00625266]
[1642715437751,0.1609,3109.7,3108.5,0.00625266]
[1642715437952,0.01466908,3109.4,3108.5,0.00625266]
[1642715438151,0.01466908,3109.4,3108.7,1.26570531]
[1642715438353,0.8044,3109.4,3108.7,1.26570531]
[1642715438550,0.80422,3109.8,3108.8,0.00454739]
[1642715438751,0.00227369,3110.0,3108.8,0.00454739]
[1642715439153,1.29131521,3110.0,3108.8,0.00454739]
[1642715439354,0.80411,3109.9,3108.8,0.00454739]
[1642715439555,0.80411,3109.9,3108.8,0.00625266]
[1642715439750,0.80411,3109.9,3108.7,0.00682108]
[1642715440388,0.00170527,3110.2,3109.2,1.16271173]
[1642715440688,0.80401,3110.3,3109.3,0.00341054]
[1642715440689,0.00113684,3110.1,3109.3,0.00341054]
[1642715442285,0.80407,3110.0,3109.3,0.00341054]
[1642715442484,0.80407,3110.0,3109.5,1.23011388]
[1642715442883,0.80407,3110.0,3109.6,0.00170527]
[1642715443288,0.00113684,3110.1,3108.9,0.80399]
[1642715443487,0.00113684,3110.1,3109.0,0.06121667]
[1642715443726,0.00113684,3110.1,3109.1,1.60772]
[1642715443926,0.00113684,3110.1,3109.2,3.842]
[1642715444127,0.00113684,3110.1,3109.9,1.45329721]
[1642715444430,0.00113684,3110.1,3110.0,7.55059059]
[1642715445133,0.00113684,3110.1,3109.3,0.00341054]
[1642715445331,0.02334707,3110.0,3109.3,0.00341054]
[1642715445530,0.00113684,3110.1,3109.3,0.00341054]
[1642715445735,0.00113684,3110.1,3108.7,3.8787]
[1642715445736,2.95,3110.0,3108.5,0.1]
[1642715445931,0.01249872,3109.8,3108.5,0.1]
[1642715446130,0.01249872,3109.8,3109.0,1.56026929]
[1642715446328,0.01249872,3109.8,3108.6,0.00397897]
[1642715446329,0.16317369,3109.7,3108.6,0.00397897]
[1642715446530,0.16317369,3109.7,3109.1,0.00113685]
[1642715446531,0.80423,3109.5,3109.1,0.00113685]
[1642715446731,0.00170527,3109.6,3109.1,0.00113685]
[1642715447129,0.00113684,3109.5,3109.1,0.00113685]
[1642715447332,0.00113684,3109.5,3109.4,1.19151677]
[1642715447582,0.80405,3110.2,3109.4,2.64527505]
[1642715447782,0.80405,3110.2,3108.7,0.00341054]
[1642715447783,0.00113684,3109.5,3108.7,0.00341054]
[1642715447983,0.80405,3109.9,3108.7,1.61134054]
[1642715448183,0.80405,3109.9,3108.7,0.00341054]
[1642715448383,0.00284211,3109.8,3108.8,0.00284212]
[1642715448684,1.6082,3110.0,3108.6,0.01281456]
[1642715448685,0.00227369,3109.7,3108.7,0.00341054]
[1642715449088,0.00170527,3109.6,3109.4,1.37774309]
[1642715449489,0.00113684,3109.5,3109.4,1.37774309]
[1642715450495,0.00113684,3109.5,3109.4,7.47774309]
[1642715450894,0.00113684,3109.5,3109.4,7.48985851]
[1642715451335,0.00113684,3109.5,3109.4,8.89293538]
[1642715451536,0.00113684,3109.5,3109.4,9.05381538]
[1642715451734,3.684e-05,3109.5,3109.4,6.27299542]
[1642715451934,3.684e-05,3109.5,3109.4,8.07679542]
[1642715452134,3.684e-05,3109.5,3109.4,8.06468]
[1642715452438,3.684e-05,3109.5,3109.4,7.06468]
[1642715452633,3.684e-05,3109.5,3109.4,6.26088]
[1642715453635,3.684e-05,3109.5,3109.4,6.1]
[1642715453836,3.684e-05,3109.5,3109.3,2.4114197]
[1642715453837,3.684e-05,3109.5,3108.9,0.03]
[1642715454235,3.684e-05,3109.5,3109.0,0.00280527]
[1642715454735,0.01273765,3109.4,3109.0,0.00280527]
[1642715454982,1.60846,3109.4,3109.0,0.00280527]
[1642715456984,0.80429,3109.3,3109.0,0.00280527]
[1642715457186,1.40428875,3109.1,3109.0,0.00280527]
[1642715457591,0.80429,3109.3,3109.0,0.00280527]
[1642715458590,0.80429,3109.3,3108.5,0.1]
[1642715458591,0.96528,3109.1,3108.5,0.1]
[1642715458863,0.82924614,3108.9,3108.5,0.1]
[1642715459161,0.01769346,3108.7,3108.5,0.1]
[1642715459359,6.1,3108.8,3108.5,0.1]
[1642715459360,6.26203684,3108.8,3108.5,0.1]
[1642715459561,6.26203684,3108.8,3107.6,0.03]
[1642715459562,6.1,3108.7,3107.6,0.03]
[1642715460060,6.9045903,3108.7,3107.7,0.00511581]
[1642715460277,0.02169896,3108.6,3107.7,0.00511581]
[1642715460466,0.00113684,3108.8,3107.8,0.0158074]
[1642715460663,0.00113684,3108.8,3108.1,1.17591008]
[1642715460861,0.80432,3108.7,3108.1,1.17591008]
[1642715461062,0.80432,3108.7,3108.2,0.00227369]
[1642715461262,0.75432,3108.7,3108.2,0.00227369]
[1642715462266,1.60906,3108.6,3108.2,0.00227369]
[1642715462477,2.4136,3108.6,3108.2,0.00227369]
[1642715463681,1.55883,3108.7,3108.2,0.00227369]
[1642715463883,0.00113684,3108.8,3108.2,0.00227369]
[1642715464082,0.00113684,3108.8,3108.3,0.06444837]
[1642715464284,0.00113684,3108.8,3108.2,0.00227369]
[1642715464482,0.00113684,3108.8,3108.4,0.00113684]
[1642715464785,0.00113684,3108.8,3108.5,2.91835667]
[1642715465089,0.00113684,3108.8,3108.7,6.26088]
[1642715465686,0.00113684,3108.8,3108.7,9.97718]
[1642715465885,0.00113684,3108.8,3108.7,10.78122]
[1642715466327,0.0847205,3108.8,3108.7,10.78122]
[1642715466528,0.0847205,3108.8,3108.7,10.62034]
[1642715467235,2.05e-05,3108.8,3108.7,10.62034]
[1642715467437,2.05e-05,3108.8,3108.7,10.78122]
[1642715468038,2.05e-05,3108.8,3108.7,3.7163]
[1642715468237,2.05e-05,3108.8,3108.2,1.61053619]
[1642715468438,2.05e-05,3108.8,3108.2,0.00227369]
[1642715468636,2.05e-05,3108.8,3108.3,0.80702161]
[1642715468834,2.05e-05,3108.8,3108.3,0.8042]
[1642715469035,2.05e-05,3108.8,3108.4,0.00225318]
[1642715469236,2.05e-05,3108.8,3108.4,1.78347572]
[1642715469439,2.05e-05,3108.8,3108.5,3.57926781]
[1642715469636,2.05e-05,3108.8,3108.6,0.85465663]
[1642715469837,2.05e-05,3108.8,3108.7,6.481]
[1642715470490,0.80388,3110.9,3109.0,1.60785]
[1642715470696,0.80386,3110.4,3109.5,1.32310939]
[1642715470893,0.80386,3110.4,3109.0,1.60785]
[1642715470894,0.75386,3110.4,3109.0,1.60785]
[1642715471095,0.01213221,3110.3,3108.6,0.00111634]
[1642715471301,0.01213221,3110.3,3108.7,0.02883887]
[1642715471499,1.26160467,3109.4,3108.7,0.02883887]
[1642715471897,0.00284213,3109.3,3108.7,0.02883887]
[1642715472096,1.63834055,3109.2,3108.7,0.02883887]
[1642715472297,1.6108537,3109.2,3108.7,0.02883887]
[1642715472501,0.00170528,3109.1,3108.7,0.02883887]
[1642715472897,0.00113686,3109.0,3108.7,0.02883887]
[1642715473302,0.00170528,3109.1,3108.7,0.02883887]
[1642715473724,0.00113686,3109.0,3108.7,1.20092096]
[1642715474132,0.00113686,3109.0,3108.7,0.02883887]
[1642715474929,0.00113686,3109.0,3108.7,0.83294887]
[1642715475129,0.00113686,3109.0,3108.8,1.55311729]
[1642715475329,0.00113686,3109.0,3108.8,3.0425431]
[1642715476231,0.00113686,3109.0,3108.9,6.13239105]
[1642715477786,0.00113686,3109.0,3108.9,6.29327105]
[1642715477987,0.00113686,3109.0,3108.9,6.13239105]
[1642715478487,0.00113686,3109.0,3108.9,6.29327105]
[1642715480590,0.00113686,3109.0,3108.9,7.62106587]
[1642715480992,0.01257943,3110.9,3108.9,29.44468429]
[1642715481277,3.55457,3111.8,3108.9,29.44468429]
[1642715481278,0.80369,3111.8,3110.0,0.80373]
[1642715481463,0.01023162,3110.8,3110.0,0.80373]
[1642715481664,2.42668743,3111.7,3110.1,3.8047]
[1642715481964,1.34420651,3110.2,3109.2,1.199]
[1642715482164,1.34420651,3110.2,3109.0,1.37509933]
[1642715482165,0.80407,3110.1,3109.0,1.37509933]
[1642715482362,0.02173705,3110.0,3109.0,1.37509933]
[1642715482561,0.02742128,3110.0,3109.0,1.37509933]
[1642715482761,0.00511581,3109.9,3108.8,0.01027053]
[1642715483162,1.56383158,3109.6,3108.8,0.01027053]
[1642715483362,0.82707926,3109.5,3108.8,0.01027053]
[1642715483563,0.80705211,3109.5,3108.8,0.01027053]
[1642715483768,0.00227369,3109.4,3108.8,1.38714649]
[1642715483965,0.00227369,3109.4,3108.8,0.01027053]
[1642715484164,0.00170527,3109.3,3108.8,0.01027053]
[1642715484364,0.80416,3109.2,3108.8,0.01027053]
[1642715484565,0.80529684,3109.2,3108.8,0.01027053]
[1642715485783,0.03032872,3109.1,3108.8,0.01027053]
[1642715486179,4.08319378,3109.0,3108.8,0.01027053]
[1642715486386,4.08319378,3109.0,3108.8,0.01301248]
[1642715486578,3.60436,3109.0,3108.8,0.01301248]
[1642715486980,4.40871,3109.0,3108.8,0.01301248]
[1642715487985,1.60871,3109.0,3108.8,0.01301248]
[1642715488185,0.80436,3109.0,3108.8,0.01301248]
[1642715488936,0.45888609,3109.1,3108.8,0.01301248]
[1642715489138,0.83709163,3110.8,3109.0,0.01224839]
[1642715489139,0.71309163,3110.8,3109.0,0.01224839]
[1642715489335,0.71309163,3110.8,3109.9,0.01228743]
[1642715489336,0.2349,3110.8,3109.9,0.01228743]
[1642715489534,0.2349,3110.8,3110.0,0.07619343]
[1642715489734,0.2349,3110.8,3110.0,0.381]
[1642715489932,0.2349,3110.8,3110.1,0.16088]
[1642715490134,0.2349,3110.8,3110.2,1.48615059]
[1642715490342,0.2349,3110.8,3110.3,0.8036093]
[1642715490533,0.2349,3110.8,3110.4,0.381]
[1642715490534,0.0001,3110.8,3110.4,0.381]
[1642715490731,0.48861882,3111.2,3110.5,0.16689097]
[1642715490935,0.48861882,3111.2,3110.6,18.821]
[1642715491134,0.01080005,3111.1,3110.7,0.01775963]
[1642715491335,4.87714667,3112.1,3112.0,4.06421391]
[1642715491336,2.69563457,3112.1,3112.0,4.06421391]
[1642715491542,2.69563457,3112.1,3112.0,2.65]
[1642715491737,2.69563457,3112.1,3112.0,3.031]
[1642715492138,2.69563457,3112.1,3112.0,6.481]
[1642715492508,0.8159165,3113.4,3112.0,6.481]
[1642715492509,0.80319,3113.4,3112.2,0.0046587]
[1642715492695,0.80319,3113.4,3112.1,4.8531257]
[1642715492696,1.20455944,3113.3,3112.3,0.381]
[1642715492894,0.0096632,3112.8,3112.4,0.381]
[1642715493294,0.00909477,3112.7,3112.4,0.381]
[1642715493696,1.20455944,3113.3,3111.5,1.09764128]
[1642715493697,1.33011069,3112.1,3111.5,1.09764128]